[Event "Slovakia Chess Open 2024"]
[Site "Modra"]
[Date "2024.03.02"]
[Round "2.12"]
[White "Nosal, Tobias"]
[Black "Gonda, Jan"]
[Result "0-1"]
[ECO "D02"]
[WhiteElo "1773"]
[BlackElo "1657"]
[Annotator "NA RC"]
[PlyCount "144"]
[EventDate "2024.02.29"]
[EventType "swiss"]
[EventCountry "SVK"]
[SourceTitle "playchess.com"]
[Source "ChessBase"]
[SourceQuality "1"]
[TimeControl "5400+30"]

1. d4 {[%emt 0:00:12]} d5 {[%emt 0:00:08]} 2. Nc3 {[%emt 0:00:07]} e6 {[%emt 0:00:07]} 3. Bf4 {[%emt 0:00:07]} a6 {[%emt 0:00:37]} 4. e3 {[%emt 0:01:20]} c5 {[%emt 0:00:16]} 5. Nf3 {[%emt 0:04:37]} Nc6 {[%emt 0:00:10]} 6. Be2 {[%emt 0:04:28]} Nf6 {[%emt 0:00:16]} 7. O-O {[%emt 0:01:12]} b5 {[%emt 0:00:34]} 8. dxc5 {[%emt 0:18:44]} Bxc5 {[%emt 0:00:18]} 9. Ne5 {[%emt 0:03:53]} Bb7 {[%emt 0:01:16]} 10. Bf3 {[%emt 0:04:31]} Rc8 {[%emt 0:00:33]} 11. Ne2 {[%emt 0:04:28]} O-O {[%emt 0:00:15]} 12. Nxc6 {[%emt 0:04:32]} Bxc6 {[%emt 0:00:29]} 13. Nd4 {[%emt 0:03:57]} Bb7 {[%emt 0:00:55]} 14. Re1 {[%emt 0:02:22]} Re8 {[%emt 0:06:32]} 15. Nb3 {[%emt 0:04:26]} Be7 {[%emt 0:03:27]} 16. c3 {[%emt 0:02:06]} h6 {[%emt 0:00:19]} 17. Qe2 {[%emt 0:03:02]} Bd6 {[%emt 0:02:19]} 18. Bxd6 {[%emt 0:03:02]} Qxd6 {[%emt 0:01:33]} 19. Rad1 {[%emt 0:03:16]} Qb8 {[%emt 0:01:22]} 20. Nd2 {[%emt 0:04:28]} Red8 {[%emt 0:02:04]} 21. e4 {[%emt 0:03:15]} dxe4 {[%emt 0:00:19]} 22. Nxe4 {[%emt 0:00:28]} Nxe4 {[%emt 0:00:25]} 23. Bxe4 {[%emt 0:00:20]} Bxe4 {[%emt 0:00:22]} 24. Qxe4 {[%emt 0:00:17]} Qb6 {[%emt 0:03:25]} 25. g3 {[%emt 0:05:46]} Rd6 {[%emt 0:08:54]} 26. Rxd6 {[%emt 0:04:12]} Qxd6 {[%emt 0:00:09]} 27. Qe5 {[%emt 0:01:16]} Qxe5 {[%emt 0:00:57]} 28. Rxe5 {[%emt 0:00:05]} Rd8 {[%emt 0:00:09]} 29. Re2 {[%emt 0:03:12]} Rd1+ {[%emt 0:00:30]} 30. Kg2 {[%emt 0:00:05]} Kf8 {[%emt 0:00:10]} 31. Rc2 {[%emt 0:00:46]} Ke7 {[%emt 0:00:23]} 32. c4 {[%emt 0:02:27]} bxc4 {[%emt 0:03:02]} 33. Rxc4 {[%emt 0:00:21]} Kd7 {[%emt 0:04:16]} 34. Ra4 {[%emt 0:01:14]} Rd6 {[%emt 0:03:06]} 35. Kf3 {[%emt 0:02:40]} f5 {[%emt 0:08:30]} 36. h4 {[%emt 0:01:32]} e5 {[%emt 0:06:47]} 37. Ra5 {[%emt 0:01:28]} Ke6 {[%emt 0:04:44]} 38. b4 {[%emt 0:01:03]} g5 {[%emt 0:01:25]} 39. hxg5 {[%emt 0:00:58]} hxg5 {[%emt 0:00:25]} 40. a4 {[%emt 0:00:57]} e4+ {[%emt 0:01:14]} 41. Ke3 {[%emt 0:00:28]} Rd3+ {[%emt 0:00:42]} 42. Ke2 {[%emt 0:00:13]} Rd6 {[%emt 0:00:06]} 43. b5 {[%emt 0:00:50]} axb5 {[%emt 0:02:23]} 44. Rxb5 {[%emt 0:01:38]} Rd4 {[%emt 0:13:57]} 45. a5 {[%emt 0:00:21]} Ra4 {[%emt 0:00:25]} 46. Rb6+ {[%emt 0:00:22]} Ke5 {[%emt 0:00:19]} 47. Rb5+ {[%emt 0:00:09]} Ke6 {[%emt 0:00:04]} 48. Rb6+ {[%emt 0:00:25]} Ke5 {[%emt 0:00:10]} 49. Rb5+ {[%emt 0:02:48]} Ke6 {[%emt 0:01:33]} 50. Ke3 {[%emt 0:00:29]} Ra3+ {[%emt 0:00:23]} 51. Kd4 {[%emt 0:00:32]} Ra4+ {[%emt 0:07:15]} 52. Kc5 {[%emt 0:00:21]} Ra2 {[%emt 0:00:16]} 53. Kb6 {[%emt 0:00:36]} Rxf2 {[%emt 0:00:32]} 54. a6 {[%emt 0:00:08]} Ra2 {[%emt 0:02:53]} 55. Ra5 {[%emt 0:00:19]} Rxa5 {[%emt 0:03:35]} 56. Kxa5 {[%emt 0:00:05]} e3 {[%emt 0:00:16]} 57. a7 {[%emt 0:00:09]} e2 {[%emt 0:00:23]} 58. a8=Q {[%emt 0:00:07]} e1=Q+ {[%emt 0:00:25]} 59. Kb5 {[%emt 0:00:54]} Qb1+ {[%emt 0:02:00]} 60. Kc5 {[%emt 0:01:09]} Qc2+ {[%emt 0:00:30]} 61. Kd4 {[%emt 0:00:52]} Qd2+ {[%emt 0:00:45]} 62. Kc4 {[%emt 0:00:31]} Qc2+ {[%emt 0:00:43]} 63. Kd4 {[%emt 0:00:36]} Qf2+ {[%emt 0:02:24]} 64. Kc4 {[%emt 0:00:24]} Qxg3 {[%emt 0:00:54]} 65. Qe8+ {[%emt 0:00:41]} Kf6 {[%emt 0:00:18]} 66. Qf8+ {[%emt 0:00:36]} Kg6 {[%emt 0:00:31]} 67. Qe8+ {[%emt 0:00:30]} Kg7 {[%emt 0:01:26]} 68. Qe7+ {[%emt 0:00:28]} Kh6 {[%emt 0:01:06]} 69. Qf6+ {[%emt 0:00:36]} Kh5 {[%emt 0:00:11]} 70. Qxf5 {[%emt 0:00:28]} Qg4+ {[%emt 0:00:19]} 71. Qxg4+ {[%emt 0:00:05]} Kxg4 {[%emt 0:00:11]} 72. Kd3 {[%emt 0:00:02]} Kf3 {[%emt 0:00:16]} 0-1

[Event "Slovakia Chess Open 2024"]
[Site "Modra"]
[Date "2024.03.02"]
[Round "2.13"]
[White "Smolka, Robert"]
[Black "Loffay, Pavol"]
[Result "0-1"]
[ECO "B07"]
[WhiteElo "1620"]
[BlackElo "1753"]
[Annotator "NA RC"]
[PlyCount "56"]
[EventDate "2024.02.29"]
[EventType "swiss"]
[EventCountry "SVK"]
[SourceTitle "playchess.com"]
[Source "ChessBase"]
[SourceQuality "1"]
[TimeControl "5400+30"]

1. e4 {[%emt 0:00:07]} d6 {[%emt 0:00:06]} 2. d4 {[%emt 0:00:14]} Nf6 {[%emt 0:00:05]} 3. Nc3 {[%emt 0:00:12]} g6 {[%emt 0:00:09]} 4. Be3 {[%emt 0:01:30]} c6 {[%emt 0:01:32]} 5. Bc4 {[%emt 0:03:17]} Bg7 {[%emt 0:01:36]} 6. Qd2 {[%emt 0:00:23]} b5 {[%emt 0:03:15]} 7. Bd3 {[%emt 0:01:32]} O-O {[%emt 0:00:51]} 8. f3 {[%emt 0:02:16]} Nbd7 {[%emt 0:01:15]} 9. a3 {[%emt 0:05:56]} Nb6 {[%emt 0:04:31]} 10. b3 {[%emt 0:15:22]} Bb7 {[%emt 0:03:02]} 11. Nge2 {[%emt 0:00:53]} Qc7 {[%emt 0:03:42]} 12. h4 {[%emt 0:03:40]} h5 {[%emt 0:03:47]} 13. Kf2 {[%emt 0:02:52]} a6 {[%emt 0:01:58]} 14. Bh6 {[%emt 0:07:01]} c5 {[%emt 0:02:37]} 15. Bxg7 {[%emt 0:07:53]} Kxg7 {[%emt 0:00:09]} 16. Nf4 {[%emt 0:10:07]} e5 {[%emt 0:01:54]} 17. dxe5 {[%emt 0:02:28]} dxe5 {[%emt 0:00:08]} 18. Nfd5 {[%emt 0:12:03]} Nbxd5 {[%emt 0:02:50]} 19. exd5 {[%emt 0:00:11]} Nxd5 {[%emt 0:03:26]} 20. Nxd5 {[%emt 0:03:18]} Bxd5 {[%emt 0:00:06]} 21. Bxg6 {[%emt 0:00:38]} fxg6 {[%emt 0:00:07]} 22. Qxd5 {[%emt 0:00:10]} Rad8 {[%emt 0:00:07]} 23. Qe4 {[%emt 0:01:08]} Rd2+ {[%emt 0:05:56]} 24. Ke3 {[%emt 0:04:57]} Rd4 {[%emt 0:02:35]} 25. Qxd4 {[%emt 0:03:21]} cxd4+ {[%emt 0:01:07]} 26. Kd3 {[%emt 0:00:09]} Qc3+ {[%emt 0:00:15]} 27. Ke4 {[%emt 0:00:39]} Qxc2+ {[%emt 0:00:46]} 28. Kxe5 {[%emt 0:00:27]} Qf5+ {[%emt 0:01:29]} 0-1

[Event "Slovakia Chess Open 2024"]
[Site "Modra"]
[Date "2024.03.02"]
[Round "2.14"]
[White "Gecik Jergus"]
[Black "Pikulik, Roman"]
[Result "1-0"]
[ECO "B34"]
[WhiteElo "1000"]
[BlackElo "1675"]
[Annotator "NA RC"]
[PlyCount "21"]
[EventDate "2024.02.29"]
[EventType "swiss"]
[EventCountry "SVK"]
[SourceTitle "playchess.com"]
[Source "ChessBase"]
[SourceQuality "1"]
[TimeControl "5400+30"]

1. e4 {[%emt 0:00:04]} c5 {[%emt 0:00:20]} 2. Nf3 {[%emt 0:00:48]} Nc6 {[%emt 0:01:48]} 3. Nc3 {[%emt 0:00:23]} g6 {[%emt 0:00:29]} 4. d4 {[%emt 0:01:39]} cxd4 {[%emt 0:00:00]} 5. Nxd4 {[%emt 0:01:16]} Bg7 {[%emt 0:00:26]} 6. Nxc6 {[%emt 0:00:30]} bxc6 {[%emt 0:00:18]} 7. Bc4 {[%emt 0:00:33]} Qa5 {[%emt 0:07:23]} 8. Bd2 {[%emt 0:01:08]} Qb6 {[%emt 0:13:21]} 9. Na4 {[%emt 0:02:03]} Qd4 {[%emt 0:00:30]} 10. Qe2 {[%emt 0:02:43]} Nf6 {[%emt 0:08:05]} 11. Bc3 {[%emt 0:01:06]} 1-0

[Event "Slovakia Chess Open 2024"]
[Site "Modra"]
[Date "2024.03.02"]
[Round "2.15"]
[White "Fratric, Jakub"]
[Black "Veres, Alex"]
[Result "1/2-1/2"]
[ECO "C17"]
[WhiteElo "1750"]
[BlackElo "1584"]
[Annotator "NA RC"]
[PlyCount "72"]
[EventDate "2024.02.29"]
[EventType "swiss"]
[EventCountry "SVK"]
[SourceTitle "playchess.com"]
[Source "ChessBase"]
[SourceQuality "1"]
[TimeControl "5400+30"]

1. e4 {[%emt 0:00:04]} e6 {[%emt 0:00:08]} 2. d4 {[%emt 0:00:19]} d5 {[%emt 0:00:08]} 3. Nc3 {[%emt 0:01:12]} Bb4 {[%emt 0:00:23]} 4. e5 {[%emt 0:00:15]} c5 {[%emt 0:00:51]} 5. Bd2 {[%emt 0:02:00]} a6 {[%emt 0:05:37]} 6. Nce2 {[%emt 0:10:50]} Bxd2+ {[%emt 0:01:35]} 7. Qxd2 {[%emt 0:00:08]} Nc6 {[%emt 0:00:20]} 8. f4 {[%emt 0:01:52]} Qb6 {[%emt 0:03:26]} 9. c3 {[%emt 0:03:02]} Nge7 {[%emt 0:01:55]} 10. Nf3 {[%emt 0:00:49]} Bd7 {[%emt 0:02:39]} 11. Nc1 {[%emt 0:11:45]} cxd4 {[%emt 0:04:28]} 12. cxd4 {[%emt 0:00:14]} Nf5 {[%emt 0:06:07]} 13. Nb3 {[%emt 0:17:13]} Rc8 {[%emt 0:04:05]} 14. g4 {[%emt 0:03:59]} Nfe7 {[%emt 0:11:27]} 15. Rc1 {[%emt 0:03:17]} Nb4 {[%emt 0:08:32]} 16. Rxc8+ {[%emt 0:00:49]} Nxc8 {[%emt 0:00:59]} 17. a3 {[%emt 0:00:17]} Ba4 {[%emt 0:03:22]} 18. axb4 {[%emt 0:05:52]} Bxb3 {[%emt 0:00:37]} 19. Qc3 {[%emt 0:00:21]} Bc4 {[%emt 0:00:23]} 20. Bxc4 {[%emt 0:02:26]} dxc4 {[%emt 0:00:43]} 21. b3 {[%emt 0:06:37]} Qc6 {[%emt 0:03:52]} 22. Qxc4 {[%emt 0:02:57]} Ne7 {[%emt 0:03:22]} 23. Kf2 {[%emt 0:04:46]} O-O {[%emt 0:02:13]} 24. Kg3 {[%emt 0:06:30]} Rc8 {[%emt 0:03:02]} 25. Qc5 {[%emt 0:01:42]} Qd7 {[%emt 0:00:57]} 26. Qd6 {[%emt 0:00:32]} Qxd6 {[%emt 0:00:41]} 27. exd6 {[%emt 0:00:09]} Nc6 {[%emt 0:00:12]} 28. b5 {[%emt 0:02:02]} axb5 {[%emt 0:00:58]} 29. Rc1 {[%emt 0:05:00]} Rd8 {[%emt 0:04:34]} 30. Rc5 {[%emt 0:00:29]} Rxd6 {[%emt 0:01:46]} 31. Rxb5 {[%emt 0:00:11]} Rd7 {[%emt 0:00:47]} 32. Ne5 {[%emt 0:00:28]} Nxe5 {[%emt 0:02:39]} 33. dxe5 {[%emt 0:00:22]} Kf8 {[%emt 0:00:28]} 34. Kf3 {[%emt 0:00:43]} Ke7 {[%emt 0:00:34]} 35. Ke4 {[%emt 0:00:37]} Kd8 {[%emt 0:00:42]} 36. Rc5 {[%emt 0:01:40]} g6 {[%emt 0:01:40]} 1/2-1/2

[Event "Slovakia Chess Open 2024"]
[Site "Modra"]
[Date "2024.03.02"]
[Round "2.16"]
[White "Rozboril, Alex"]
[Black "Zentko, Ladislav"]
[Result "0-1"]
[ECO "C25"]
[WhiteElo "1563"]
[BlackElo "1749"]
[Annotator "NA RC"]
[PlyCount "54"]
[EventDate "2024.02.29"]
[EventType "swiss"]
[EventCountry "SVK"]
[SourceTitle "playchess.com"]
[Source "ChessBase"]
[SourceQuality "1"]
[TimeControl "5400+30"]

1. e4 {[%emt 0:00:03]} e5 {[%emt 0:00:13]} 2. Nc3 {[%emt 0:02:45]} Bc5 {[%emt 0:01:20]} 3. f4 {[%emt 0:02:16]} Nc6 {[%emt 0:01:29]} 4. fxe5 {[%emt 0:06:28]} d6 {[%emt 0:00:28]} 5. exd6 {[%emt 0:07:31]} Qxd6 {[%emt 0:00:15]} 6. Nf3 {[%emt 0:03:00]} Bg4 {[%emt 0:00:44]} 7. Be2 {[%emt 0:07:09]} O-O-O {[%emt 0:05:48]} 8. d3 {[%emt 0:08:54]} Nf6 {[%emt 0:08:19]} 9. Ng5 {[%emt 0:08:02]} Bxe2 {[%emt 0:08:41]} 10. Qxe2 {[%emt 0:00:29]} Rd7 {[%emt 0:09:11]} 11. Be3 {[%emt 0:04:13]} Bxe3 {[%emt 0:07:03]} 12. Qxe3 {[%emt 0:00:22]} Nd4 {[%emt 0:05:13]} 13. O-O-O {[%emt 0:03:54]} Re8 {[%emt 0:03:42]} 14. Qh3 {[%emt 0:07:01]} Qf4+ {[%emt 0:04:11]} 15. Kb1 {[%emt 0:08:31]} Qxg5 {[%emt 0:00:14]} 16. Rhe1 {[%emt 0:02:38]} Qg4 {[%emt 0:00:52]} 17. e5 {[%emt 0:12:05]} Qxh3 {[%emt 0:03:39]} 18. gxh3 {[%emt 0:00:14]} Nd5 {[%emt 0:01:12]} 19. Nxd5 {[%emt 0:01:50]} Rxd5 {[%emt 0:00:05]} 20. Rf1 {[%emt 0:02:17]} Re7 {[%emt 0:02:42]} 21. c3 {[%emt 0:01:44]} Ne6 {[%emt 0:05:08]} 22. d4 {[%emt 0:01:37]} c5 {[%emt 0:00:17]} 23. Rg1 {[%emt 0:04:03]} cxd4 {[%emt 0:01:47]} 24. cxd4 {[%emt 0:00:09]} Red7 {[%emt 0:00:55]} 25. Rc1+ {[%emt 0:01:53]} Rc7 {[%emt 0:00:39]} 26. Rcd1 {[%emt 0:00:15]} Kd7 {[%emt 0:04:12]} 27. b3 {[%emt 0:00:49]} Rc3 {[%emt 0:01:40]} 0-1

[Event "Slovakia Chess Open 2024"]
[Site "Modra"]
[Date "2024.03.02"]
[Round "2.17"]
[White "Banas, Samuel"]
[Black "Mruskovic, Ondrej"]
[Result "0-1"]
[ECO "C01"]
[WhiteElo "1733"]
[BlackElo "1510"]
[Annotator "NA"]
[PlyCount "46"]
[EventDate "2024.02.29"]
[EventType "swiss"]
[EventCountry "SVK"]
[SourceTitle "playchess.com"]
[Source "ChessBase"]
[SourceQuality "1"]
[TimeControl "5400+30"]

1. e4 {[%emt 0:00:02]} e6 {[%emt 0:00:02]} 2. d4 {[%emt 0:00:11]} d5 {[%emt 0:00:04]} 3. exd5 {[%emt 0:00:30]} exd5 {[%emt 0:00:06]} 4. Bd3 {[%emt 0:00:11]} Nf6 {[%emt 0:00:19]} 5. Nf3 {[%emt 0:01:20]} Bg4 {[%emt 0:01:33]} 6. Bg5 {[%emt 0:01:02]} Nbd7 {[%emt 0:00:28]} 7. Qe2+ {[%emt 0:00:54]} Qe7 {[%emt 0:00:31]} 8. Qxe7+ {[%emt 0:00:28]} Bxe7 {[%emt 0:00:09]} 9. h3 {[%emt 0:00:22]} Bxf3 {[%emt 0:00:44]} 10. gxf3 {[%emt 0:00:11]} O-O {[%emt 0:01:39]} 11. Nd2 {[%emt 0:00:14]} Rfe8 {[%emt 0:01:04]} 12. O-O-O {[%emt 0:00:13]} Nh5 {[%emt 0:01:34]} 13. Rhg1 {[%emt 0:01:27]} Bxg5 {[%emt 0:00:58]} 14. Rxg5 {[%emt 0:00:48]} g6 {[%emt 0:00:51]} 15. Rxd5 {[%emt 0:00:22]} Ndf6 {[%emt 0:01:18]} 16. Rg5 {[%emt 0:00:35]} Nf4 {[%emt 0:00:38]} 17. Bf1 {[%emt 0:01:51]} Ne2+ {[%emt 0:05:47]} 18. Kb1 {[%emt 0:02:18]} Nxd4 {[%emt 0:01:28]} 19. Bc4 {[%emt 0:01:24]} Rad8 {[%emt 0:03:05]} 20. Rc5 {[%emt 0:07:33]} Nxf3 {[%emt 0:02:45]} 21. Kc1 {[%emt 0:01:03]} Nxd2 {[%emt 0:00:00]} 22. Rxd2 {[%emt 0:00:26]} Re1+ {[%emt 0:00:19]} 23. Rd1 {[%emt 0:00:30]} Rdxd1# {[%emt 0:00:08]} 0-1

[Event "Slovakia Chess Open 2024"]
[Site "Modra"]
[Date "2024.03.02"]
[Round "2.18"]
[White "Hanzel, Richard"]
[Black "Hitka, Dominik"]
[Result "1/2-1/2"]
[ECO "C42"]
[WhiteElo "1531"]
[BlackElo "1709"]
[Annotator "NA RC"]
[PlyCount "76"]
[EventDate "2024.02.29"]
[EventType "swiss"]
[EventCountry "SVK"]
[SourceTitle "playchess.com"]
[Source "ChessBase"]
[SourceQuality "1"]
[TimeControl "5400+30"]

1. e4 {[%emt 0:01:33]} e5 {[%emt 0:02:32]} 2. Nf3 {[%emt 0:00:05]} Nf6 {[%emt 0:00:08]} 3. Nxe5 {[%emt 0:00:18]} Qe7 {[%emt 0:00:30]} 4. Nf3 {[%emt 0:03:10]} Qxe4+ {[%emt 0:00:09]} 5. Qe2 {[%emt 0:00:15]} Bc5 {[%emt 0:00:36]} 6. Nc3 {[%emt 0:00:53]} Qxe2+ {[%emt 0:00:36]} 7. Bxe2 {[%emt 0:00:59]} a6 {[%emt 0:00:21]} 8. h3 {[%emt 0:00:30]} O-O {[%emt 0:01:08]} 9. O-O {[%emt 0:00:08]} Nc6 {[%emt 0:00:44]} 10. a3 {[%emt 0:02:22]} b5 {[%emt 0:00:44]} 11. b4 {[%emt 0:02:13]} Bb6 {[%emt 0:01:09]} 12. Bb2 {[%emt 0:01:04]} Re8 {[%emt 0:00:44]} 13. Rfe1 {[%emt 0:01:09]} Bb7 {[%emt 0:00:46]} 14. Bd3 {[%emt 0:09:13]} Nd4 {[%emt 0:02:22]} 15. Nxd4 {[%emt 0:02:20]} Bxd4 {[%emt 0:00:19]} 16. Rab1 {[%emt 0:04:04]} Rxe1+ {[%emt 0:05:32]} 17. Rxe1 {[%emt 0:00:22]} Nd5 {[%emt 0:01:11]} 18. Be4 {[%emt 0:05:31]} c6 {[%emt 0:03:54]} 19. Bxd5 {[%emt 0:03:18]} cxd5 {[%emt 0:00:15]} 20. Nd1 {[%emt 0:02:37]} Bxb2 {[%emt 0:01:36]} 21. Nxb2 {[%emt 0:00:37]} Kf8 {[%emt 0:00:14]} 22. Nd3 {[%emt 0:00:21]} d6 {[%emt 0:00:49]} 23. c3 {[%emt 0:01:26]} Rc8 {[%emt 0:01:23]} 24. f3 {[%emt 0:02:13]} d4 {[%emt 0:00:31]} 25. Rc1 {[%emt 0:00:00]} Rc4 {[%emt 0:03:43]} 26. Kf2 {[%emt 0:03:16]} dxc3 {[%emt 0:01:20]} 27. Rxc3 {[%emt 0:00:30]} d5 {[%emt 0:00:59]} 28. Rxc4 {[%emt 0:02:40]} dxc4 {[%emt 0:00:17]} 29. Nc5 {[%emt 0:00:08]} Bc8 {[%emt 0:00:08]} 30. Ke3 {[%emt 0:00:51]} Ke7 {[%emt 0:00:33]} 31. Ke4 {[%emt 0:03:02]} Kd6 {[%emt 0:00:41]} 32. h4 {[%emt 0:00:35]} h5 {[%emt 0:01:32]} 33. Kd4 {[%emt 0:02:15]} f6 {[%emt 0:03:13]} 34. f4 {[%emt 0:02:38]} Kc6 {[%emt 0:04:10]} 35. Ke4 {[%emt 0:04:35]} g6 {[%emt 0:01:29]} 36. g3 {[%emt 0:03:22]} f5+ {[%emt 0:02:24]} 37. Kd4 {[%emt 0:01:17]} Kd6 {[%emt 0:00:34]} 38. d3 {[%emt 0:00:47]} cxd3 {[%emt 0:04:19]} 1/2-1/2

[Event "Slovakia Chess Open 2024"]
[Site "Modra"]
[Date "2024.03.02"]
[Round "3.1"]
[White "Krivoborodov, Egor"]
[Black "Galla, Richard"]
[Result "1-0"]
[ECO "E18"]
[WhiteElo "2555"]
[BlackElo "1975"]
[Annotator "RC"]
[PlyCount "59"]
[EventDate "2024.02.29"]
[EventType "swiss"]
[EventCountry "SVK"]
[SourceTitle "playchess.com"]
[Source "ChessBase"]
[SourceQuality "1"]
[TimeControl "5400+30"]

1. Nf3 {[%emt 0:02:01]} Nf6 {[%emt 0:00:12]} 2. g3 {[%emt 0:00:07]} b6 {[%emt 0:00:05]} 3. Bg2 {[%emt 0:00:13]} Bb7 {[%emt 0:00:05]} 4. O-O {[%emt 0:00:05]} d5 {[%emt 0:00:07]} 5. d4 {[%emt 0:03:49]} e6 {[%emt 0:00:18]} 6. c4 {[%emt 0:01:00]} dxc4 {[%emt 0:00:08]} 7. Qa4+ {[%emt 0:01:03]} Nbd7 {[%emt 0:00:02]} 8. Qxc4 {[%emt 0:03:43]} Be7 {[%emt 0:00:14]} 9. Nc3 {[%emt 0:00:41]} O-O {[%emt 0:03:12]} 10. Rd1 {[%emt 0:01:07]} a6 {[%emt 0:02:58]} 11. a4 {[%emt 0:10:38]} c5 {[%emt 0:04:07]} 12. dxc5 {[%emt 0:27:47]} Bxc5 {[%emt 0:00:03]} 13. Bg5 {[%emt 0:05:11]} Qc7 {[%emt 0:05:59]} 14. Qf4 {[%emt 0:08:14]} Qxf4 {[%emt 0:06:15]} 15. Bxf4 {[%emt 0:00:34]} Rfd8 {[%emt 0:10:33]} 16. Nd2 {[%emt 0:08:30]} Bxg2 {[%emt 0:01:24]} 17. Kxg2 {[%emt 0:01:43]} h6 {[%emt 0:09:55]} 18. Nde4 {[%emt 0:01:30]} Rac8 {[%emt 0:05:51]} 19. Nxc5 {[%emt 0:04:30]} Rxc5 {[%emt 0:01:00]} 20. Rd6 {[%emt 0:00:31]} Rb8 {[%emt 0:06:26]} 21. Rad1 {[%emt 0:06:21]} Rb7 {[%emt 0:00:46]} 22. e4 {[%emt 0:01:14]} e5 {[%emt 0:02:26]} 23. Be3 {[%emt 0:00:04]} Rc4 {[%emt 0:00:35]} 24. Kf3 {[%emt 0:00:53]} Nc5 {[%emt 0:12:22]} 25. Rc6 {[%emt 0:05:41]} Rd7 {[%emt 0:04:25]} 26. a5 {[%emt 0:04:38]} Rxc3 {[%emt 0:02:17]} 27. Rxd7 {[%emt 0:00:16]} Rxe3+ {[%emt 0:01:12]} 28. Kxe3 {[%emt 0:00:07]} Nfxd7 {[%emt 0:00:30]} 29. axb6 {[%emt 0:01:15]} a5 {[%emt 0:08:45]} 30. Rc8+ {[%emt 0:00:06]} 1-0

[Event "Slovakia Chess Open 2024"]
[Site "Modra"]
[Date "2024.03.02"]
[Round "3.2"]
[White "Banas, Kamil"]
[Black "Bochnicka, Vladimir"]
[Result "0-1"]
[ECO "C45"]
[WhiteElo "2162"]
[BlackElo "2413"]
[Annotator "RC"]
[PlyCount "58"]
[EventDate "2024.02.29"]
[EventType "swiss"]
[EventCountry "SVK"]
[SourceTitle "playchess.com"]
[Source "ChessBase"]
[SourceQuality "1"]
[TimeControl "5400+30"]

1. e4 {[%emt 0:00:07]} e5 {[%emt 0:00:06]} 2. Nf3 {[%emt 0:00:15]} Nc6 {[%emt 0:00:05]} 3. d4 {[%emt 0:00:37]} exd4 {[%emt 0:00:09]} 4. Nxd4 {[%emt 0:00:02]} Bc5 {[%emt 0:00:49]} 5. Nb3 {[%emt 0:00:06]} Bb6 {[%emt 0:00:06]} 6. Nc3 {[%emt 0:00:02]} d6 {[%emt 0:01:30]} 7. a4 {[%emt 0:00:33]} a5 {[%emt 0:00:10]} 8. Nd5 {[%emt 0:00:16]} Nf6 {[%emt 0:03:36]} 9. Nxb6 {[%emt 0:02:20]} cxb6 {[%emt 0:00:04]} 10. Bc4 {[%emt 0:09:53]} O-O {[%emt 0:02:26]} 11. O-O {[%emt 0:03:01]} Nxe4 {[%emt 0:04:36]} 12. Re1 {[%emt 0:01:12]} Nxf2 {[%emt 0:02:21]} 13. Qf3 {[%emt 0:02:27]} Ng4 {[%emt 0:01:12]} 14. Bg5 {[%emt 0:02:27]} Qd7 {[%emt 0:05:18]} 15. Qg3 {[%emt 0:15:27]} Qf5 {[%emt 0:04:30]} 16. Bf4 {[%emt 0:07:08]} Nge5 {[%emt 0:01:06]} 17. Bd5 {[%emt 0:01:42]} Ng6 {[%emt 0:06:03]} 18. Bxd6 {[%emt 0:02:02]} Qxd5 {[%emt 0:01:21]} 19. Bxf8 {[%emt 0:00:05]} Nxf8 {[%emt 0:00:48]} 20. Re8 {[%emt 0:01:03]} f6 {[%emt 0:01:50]} 21. Qc7 {[%emt 0:04:13]} Bh3 {[%emt 0:01:15]} 22. Re2 {[%emt 0:02:32]} Re8 {[%emt 0:05:27]} 23. Rd2 {[%emt 0:02:22]} Qg5 {[%emt 0:00:22]} 24. Qxb7 {[%emt 0:03:21]} Qe3+ {[%emt 0:06:07]} 25. Rf2 {[%emt 0:00:21]} Bd7 {[%emt 0:00:21]} 26. Rd1 {[%emt 0:02:30]} Ne5 {[%emt 0:06:54]} 27. h3 {[%emt 0:01:49]} Bc6 {[%emt 0:00:58]} 28. Qc7 {[%emt 0:03:22]} Ne6 {[%emt 0:00:24]} 29. Qd6 {[%emt 0:00:32]} Nf4 {[%emt 0:00:42]} 0-1

[Event "Slovakia Chess Open 2024"]
[Site "Modra"]
[Date "2024.03.02"]
[Round "3.3"]
[White "Mruskovic, Radoslav"]
[Black "Stevik, Patrik"]
[Result "0-1"]
[ECO "D40"]
[WhiteElo "1933"]
[BlackElo "2167"]
[Annotator "RC"]
[PlyCount "64"]
[EventDate "2024.02.29"]
[EventType "swiss"]
[EventCountry "SVK"]
[SourceTitle "playchess.com"]
[Source "ChessBase"]
[SourceQuality "1"]
[TimeControl "5400+30"]

1. d4 {[%emt 0:00:05]} d5 {[%emt 0:00:01]} 2. c4 {[%emt 0:00:06]} e6 {[%emt 0:00:30]} 3. Nf3 {[%emt 0:00:09]} c5 {[%emt 0:00:01]} 4. e3 {[%emt 0:00:41]} Nf6 {[%emt 0:00:00]} 5. Nc3 {[%emt 0:00:15]} a6 {[%emt 0:00:00]} 6. cxd5 {[%emt 0:00:30]} Nxd5 {[%emt 0:00:25]} 7. g3 {[%emt 0:00:29]} cxd4 {[%emt 0:01:00]} 8. exd4 {[%emt 0:04:04]} b5 {[%emt 0:05:56]} 9. Nxd5 {[%emt 0:01:44]} Qxd5 {[%emt 0:00:16]} 10. Bg2 {[%emt 0:00:23]} Bb4+ {[%emt 0:02:46]} 11. Bd2 {[%emt 0:00:20]} Bxd2+ {[%emt 0:00:12]} 12. Qxd2 {[%emt 0:00:11]} Bb7 {[%emt 0:00:10]} 13. O-O {[%emt 0:00:58]} O-O {[%emt 0:00:18]} 14. Rfc1 {[%emt 0:04:12]} Qd6 {[%emt 0:02:48]} 15. Rc3 {[%emt 0:08:42]} Nd7 {[%emt 0:01:44]} 16. Qc2 {[%emt 0:04:45]} Nf6 {[%emt 0:01:04]} 17. Rd1 {[%emt 0:04:09]} Be4 {[%emt 0:02:13]} 18. Qe2 {[%emt 0:04:15]} Rfd8 {[%emt 0:02:41]} 19. Re3 {[%emt 0:06:01]} Bd5 {[%emt 0:00:59]} 20. b3 {[%emt 0:00:20]} Rac8 {[%emt 0:00:44]} 21. Ne5 {[%emt 0:09:50]} Bxg2 {[%emt 0:01:41]} 22. Kxg2 {[%emt 0:00:07]} Nd5 {[%emt 0:00:11]} 23. Red3 {[%emt 0:01:25]} f6 {[%emt 0:01:00]} 24. Ng4 {[%emt 0:01:31]} Nc3 {[%emt 0:00:36]} 25. Qd2 {[%emt 0:05:45]} Nxd1 {[%emt 0:00:57]} 26. Qxd1 {[%emt 0:00:07]} Qc6+ {[%emt 0:00:18]} 27. Kh3 {[%emt 0:02:10]} Qc2 {[%emt 0:01:56]} 28. Qf3 {[%emt 0:00:06]} h5 {[%emt 0:01:45]} 29. Nxf6+ {[%emt 0:03:09]} gxf6 {[%emt 0:00:02]} 30. Qe4 {[%emt 0:03:26]} Qc7 {[%emt 0:01:11]} 31. Qxe6+ {[%emt 0:00:42]} Qf7 {[%emt 0:00:02]} 32. Qxa6 {[%emt 0:00:35]} Qd7+ {[%emt 0:00:15]} 0-1